fUSD/lending_fUSD_20250417
["ID","MTS","AMOUNT","RATE_DAILY","PERIOD"]
[358257435,1744876375072,-260.84481922,0.0007,120]
[358257436,1744876375082,-260.84481922,0.0007,120]
[358257437,1744876375091,-260.84481922,0.0007,120]
[358257438,1744876375101,-260.84481922,0.0007,120]
[358257439,1744876375111,-521.68963834,0.0007,120]
[358257440,1744876375120,-500.0,0.0007,120]
[358257441,1744876375130,-2000.0,0.0007,120]
[358257442,1744876375141,-500.0,0.00070136,120]
[358257443,1744876375150,-41972.54809277,0.0007015,2]
[358257444,1744876375160,-500.0,0.00070684,120]
[358257445,1744876375169,-200.45,0.00070732,120]
[358257446,1744876375178,-396.66441544,0.00071,120]
[358257447,1744876375190,-10000.0,0.00071,120]
[358257448,1744876375199,-508.01,0.00071065,2]
[358257449,1744876375209,-454.08,0.00071205,120]
[358257450,1744876375221,-582.5373343,0.00071232,120]
[358257451,1744876375231,-800.0,0.00071232,120]
[358257452,1744876375241,-800.0,0.00071232,120]
[358257453,1744876375251,-174.57,0.00071711,120]
[358257454,1744876375261,-1000.0,0.00071832,120]
[358257455,1744876375271,-1068.0,0.00071918,120]
[358257456,1744876375280,-2959.86,0.00072,60]
[358257457,1744876375290,-300.0,0.00072,120]
[358257458,1744876375301,-10000.0,0.00072,120]
[358257459,1744876375311,-250000.0,0.00072,120]
[358257460,1744876375322,-183.37,0.00072112,120]
[358257461,1744876375333,-239.43,0.00072322,120]
[358257462,1744876375343,-1288.0,0.00072383,120]
[358257463,1744876375353,-2048.0,0.00072383,120]
[358257464,1744876375363,-1328.0,0.00072383,120]
[358257465,1744876375374,-792.0,0.00072383,2]
[358257466,1744876375384,-545.0,0.00072383,120]
[358257467,1744876375394,-1280.0,0.00072383,120]
[358257468,1744876375404,-907.0,0.00072383,120]
[358257469,1744876375414,-1439.0,0.00072383,120]
[358257470,1744876375424,-4150.0,0.00072383,120]
[358257471,1744876375434,-152.0,0.00072383,120]
[358257472,1744876375443,-3967.0,0.00072383,120]
[358257473,1744876375453,-150.0,0.00072426,120]
[358257474,1744876375463,-95306.15427191,0.00073,120]
[358257475,1744876375472,-508.01,0.00073329,2]
[358257476,1744876375482,-151.0,0.00073452,120]
[358257477,1744876375492,-651.43600465,0.000735,120]
[358257478,1744876375501,-300.0,0.00074,120]
[358257479,1744876375511,-10000.0,0.00074,120]
[358257480,1744876375521,-152.0,0.00074108,9]
[358257481,1744876375531,-220.39867812,0.00074108,5]
[358257482,1744876375541,-152.0,0.00074108,3]
[358257483,1744876375550,-152.0,0.00074108,5]
[358257484,1744876375558,-454.08,0.00074336,120]
[358257485,1744876375567,-2000.0,0.0007444,32]
[358257486,1744876375576,-2000.0,0.0007456,32]
[358257487,1744876375586,-1000.0,0.00074998,120]
[358257488,1744876375595,-50000.0,0.00075,75]
[358257489,1744876375605,-1000.0,0.00075,120]
[358257490,1744876375614,-847.68228044,0.00075,10]
[358257491,1744876375623,-150.0,0.00075147,120]
[358257492,1744876375633,-1288.0,0.00075383,120]
[358257493,1744876375643,-2048.0,0.00075383,120]
[358257494,1744876375652,-1328.0,0.00075383,120]
[358257495,1744876375662,-781.999,0.00075383,2]
[358257496,1744876375671,-1280.0,0.00075383,120]
[358257497,1744876375681,-907.0,0.00075383,120]
[358257498,1744876375691,-1439.0,0.00075383,120]
[358257499,1744876375701,-4150.0,0.00075383,120]
[358257500,1744876375711,-152.0,0.00075383,120]
[358257501,1744876375720,-1068.0,0.00075514,120]
[358257502,1744876375730,-508.01,0.00075593,2]
[358257503,1744876375740,-150.0,0.00076,30]
[358257504,1744876375749,-300.0,0.00076,120]
[358257505,1744876375758,-10000.0,0.00076,120]
[358257506,1744876375768,-10000.0,0.00076,120]
[358257507,1744876375777,-151.07,0.00076649,120]
[358257508,1744876375787,-1000.0,0.000767,120]
[358257509,1744876375796,-800.0,0.00076712,120]
[358257510,1744876375807,-800.0,0.00076712,120]
[358257511,1744876375818,-239.43,0.00077213,120]
[358257512,1744876375828,-508.01,0.00077857,2]
[358257513,1744876375838,-1040.13905164,0.00078,120]
[358257514,1744876375847,-183.37,0.0007801,120]
[358257515,1744876375857,-500.0,0.00078045,15]
[358257516,1744876375866,-983.71282681,0.00078045,14]
[358257517,1744876375876,-2000.0,0.00078045,15]
[358257518,1744876375887,-2000.0,0.00078045,15]
[358257519,1744876375898,-2048.0,0.00078383,120]
[358257520,1744876375908,-1328.0,0.00078383,120]
[358257521,1744876375918,-564.65,0.00078383,120]
[358257522,1744876375928,-235.177,0.00078383,120]
[358257523,1744876375937,-1036.719,0.00078383,120]
[358257524,1744876375947,-795.03,0.00078383,120]
[358257525,1744876375957,-152.0,0.00078383,120]
[358257526,1744876375966,-2690.5476289,0.000785,35]
[358257527,1744876375975,-728.67931131,0.000788,120]
[358257528,1744876375985,-437.59963557,0.00078986,120]
[358257529,1744876375994,-16200.9882119,0.00079,120]
[358257530,1744876376004,-1068.0,0.00079289,120]
[358257531,1744876376013,-865.745,0.0007965,120]
[358257532,1744876376023,-50000.0,0.0008,80]
[358257533,1744876376033,-859002.87587368,0.0008,120]
[358257534,1744876376043,-3000.0,0.0008,120]
[358257535,1744876376052,-1000.0,0.0008,120]
[358257536,1744876376062,-2735.02242413,0.0008,120]
[358257537,1744876376072,-200.0,0.0008,8]
[358257538,1744876376082,-15414.65470702,0.0008,30]
[358257539,1744876376091,-195329.04837108,0.0008,2]
[358257540,1744876376101,-929.1726799,0.0008,120]
[358257541,1744876376111,-150.0,0.0008,30]
[358257542,1744876376121,-300.0,0.0008,120]
[358257543,1744876376130,-847.68228044,0.0008,10]
[358257544,1744876376141,-508.01,0.00080121,2]
[358257545,1744876376151,-150.0,0.0008082,120]
[358257546,1744876376161,-160.57,0.00080959,120]
[358257547,1744876376170,-1615.42122301,0.0008137,30]
[358257548,1744876376180,-403.919,0.00081383,120]
[358257549,1744876376191,-1328.0,0.00081383,120]
[358257550,1744876376200,-200.45,0.00081965,120]
[358257551,1744876376210,-239.43,0.00082103,120]
[358257552,1744876376221,-800.0,0.00082191,120]
[358257553,1744876376231,-800.0,0.00082191,120]
[358257554,1744876376241,-508.01,0.00082385,2]
[358257555,1744876376251,-1068.0,0.00083254,120]
[358257556,1744876376260,-183.37,0.00083908,120]
[358257557,1744876376270,-5644.16299452,0.00084,120]
[358257558,1744876376279,-945.987,0.00084383,120]
[358257559,1744876376288,-508.01,0.00084649,2]
[358257560,1744876376298,-50000.0,0.00085,85]
[358257561,1744876376308,-2959.86,0.00085,60]
[358257562,1744876376317,-151.07,0.00085269,120]
[358257563,1744876376327,-847.68228044,0.00086,10]
[358257564,1744876376336,-2000.0,0.0008656,32]
[358257565,1744876376346,-508.01,0.00086913,2]
[358257566,1744876376356,-239.43,0.00086993,120]
[358257567,1744876376366,-1068.0,0.00087416,120]
[358257568,1744876376376,-800.0,0.00087671,120]
[358257569,1744876376387,-800.0,0.00087671,120]
[358257570,1744876376396,-151.0,0.00087671,120]
[358257571,1744876376406,-168710.42380205,0.00088,120]
[358257572,1744876376416,-684.69957933,0.00088,90]
[358257573,1744876376426,-60000.0,0.0008888,120]
[358257574,1744876376435,-508.01,0.00089177,2]
[358257575,1744876376445,-183.37,0.00089805,120]
[358257576,1744876376455,-50000.0,0.0009,90]
[358257577,1744876376465,-3000.0,0.0009,120]
[358257578,1744876376475,-301.53,0.0009,2]
[358257579,1744876376485,-200.0,0.0009,120]
[358257580,1744876376494,-151.0,0.00090493,120]
[358257581,1744876376504,-1068.0,0.00091787,120]
[358257582,1744876376514,-239.43,0.00091884,120]
[358257583,1744876376524,-522.36225714,0.00092,120]
[358257584,1744876376533,-847.68228044,0.00092,10]
[358257585,1744876376543,-822.72411722,0.0009315,120]
[358257586,1744876376554,-800.0,0.0009315,120]
[358257587,1744876376564,-200.45,0.00093198,120]
[358257588,1744876376574,-2500.0,0.00093408,60]
[358257589,1744876376584,-2500.0,0.00093408,60]
[358257590,1744876376594,-151.07,0.00093888,120]
[358257591,1744876376603,-267.98007243,0.0009429,7]
[358257592,1744876376612,-865.744,0.00094825,120]
[358257593,1744876376622,-150.0,0.00094996,120]
[358257594,1744876376632,-50000.0,0.00095,95]
[358257595,1744876376641,-183.37,0.00095703,120]
[358257596,1744876376651,-1068.0,0.00096377,120]
[358257597,1744876376660,-239.43,0.00096774,120]
[358257598,1744876376669,-28654.06836277,0.000975,120]
[358257599,1744876376679,-1749.63402778,0.000975,120]
[358257600,1744876376688,-1378.77348932,0.00097654,120]
[358257601,1744876376698,-2000.0,0.00098,120]
[358257602,1744876376707,-947.64086268,0.00098,120]
[358257603,1744876376716,-2959.86,0.00098,60]
[358257604,1744876376726,-800.0,0.0009863,120]
[358257605,1744876376736,-200.0,0.00099,120]
[358257606,1744876376745,-160.57,0.00099635,120]
[358257607,1744876376755,-50000.0,0.001,120]
[358257608,1744876376764,-500.0,0.001,120]
[358257609,1744876376774,-3000.0,0.001,120]
[358257610,1744876376783,-3000.0,0.001,120]
[358257611,1744876376792,-100000.0,0.001,30]
[358257612,1744876376802,-179.09231987,0.001,120]
[358257613,1744876376810,-1050.70504747,0.001,120]
[358257614,1744876376821,-1000.0,0.001,2]
[358257615,1744876376830,-155.70539169,0.001,120]
[358257616,1744876376839,-500.0,0.001,120]
[358257617,1744876376850,-847.68228044,0.001,10]
[358257618,1744876376860,-1000.0,0.001,120]
[358257619,1744876376869,-1350.0,0.001,10]
[358257620,1744876376879,-155.0,0.001,120]
[358257621,1744876376888,-150.0,0.00101158,120]
[358257622,1744876376897,-1068.0,0.00101195,120]
[358257623,1744876376907,-183.37,0.00101601,120]
[358257624,1744876376916,-239.43,0.00101665,120]
[358257625,1744876376926,-151.0,0.0010189,120]
[358257626,1744876376935,-151.07,0.00102508,120]
[358257627,1744876376944,-158.58,0.001031,30]
[358257628,1744876376954,-800.0,0.00104109,120]
[358257629,1744876376963,-200.45,0.00104431,120]
[358257630,1744876376973,-411.08,0.001046,120]
[358257631,1744876376982,-150.0,0.00105725,120]
[358257632,1744876376991,-1068.0,0.00106255,120]
[358257633,1744876377001,-239.43,0.00106555,120]
[358257634,1744876377010,-183.37,0.00107498,120]
[358257635,1744876377020,-800.0,0.00109589,120]
[358257636,1744876377029,-150.0,0.00109867,120]
[358257637,1744876377038,-865.744,0.0011,120]
[358257638,1744876377048,-989.86277134,0.00110835,60]
[358257639,1744876377058,-316.37301979,0.00110835,60]
[358257640,1744876377067,-151.07,0.00111127,120]
[358257641,1744876377076,-239.43,0.00111446,120]
[358257642,1744876377086,-151.0,0.00113233,120]
[358257643,1744876377095,-183.37,0.00113396,120]
[358257644,1744876377104,-2000.0,0.00114999,16]
[358257645,1744876377113,-800.0,0.00115068,120]
[358257646,1744876377123,-151.0,0.0011611,120]
[358257647,1744876377132,-239.43,0.00116336,120]
[358257648,1744876377145,-160.57,0.00118311,120]
[358257649,1744876377154,-183.37,0.00119293,120]
[358257650,1744876377163,-151.07,0.00119747,120]
[358257651,1744876377172,-3000.0,0.0012,120]
[358257652,1744876377183,-1000.0,0.0012,45]
[358257653,1744876377192,-847.68228044,0.0012,10]
[358257654,1744876377202,-800.0,0.00120547,120]
[358257655,1744876377211,-150.0,0.0012128,120]
[358257656,1744876377222,-183.37,0.00125191,120]
[358257657,1744876377232,-800.0,0.00126027,120]
[358257658,1744876377241,-151.07,0.00128367,120]
[358257659,1744876377251,-717.31819491,0.0013,120]
[358257660,1744876377260,-151.0,0.00130329,120]
[358257661,1744876377270,-183.37,0.00131089,120]
[358257662,1744876377280,-800.0,0.00131506,120]
[358257663,1744876377290,-30000.0,0.00135,120]
[358257664,1744876377299,-151.0,0.00135973,120]
[358257665,1744876377309,-800.0,0.00136986,120]
[358257666,1744876377401,-151.07,0.00136986,120]
[358257667,1744876377410,-183.37,0.00136986,120]
[358257668,1744876377420,-160.57,0.00136986,120]
[358257669,1744876377430,-411.08,0.001381,120]
[358257670,1744876377439,-300.0,0.0014,120]
[358257671,1744876377448,-150.0,0.001409,120]
[358257672,1744876377458,-800.0,0.00142465,120]
[358257673,1744876377468,-151.0,0.00144548,120]
[358257674,1744876377478,-800.0,0.00147945,120]
[358257675,1744876377487,-1000.0,0.00149825,120]
[358257676,1744876377497,-3000.0,0.0015,120]
[358257677,1744876377507,-1000.0,0.0015,7]
[358257678,1744876377517,-302.43157983,0.0015,120]
[358257679,1744876377526,-847.68228044,0.0015,10]
[358257680,1744876377536,-800.0,0.00153424,120]
[358257681,1744876377546,-3000.0,0.001586,30]
[358257682,1744876377555,-151.0,0.00158712,120]
[358257683,1744876377565,-151.0,0.00158767,120]
[358257684,1744876377574,-800.0,0.00158904,120]
[358257685,1744876377584,-800.0,0.00164383,120]
[358257686,1744876377593,-800.0,0.00169862,120]
[358257687,1744876377603,-2000.0,0.0017,120]
[358257688,1744876377612,-847.68228044,0.0017,10]
[358257689,1744876377621,-150.0,0.00171326,120]
[358257690,1744876377630,-411.08,0.001717,120]
[358257691,1744876377639,-151.0,0.00172986,120]
[358257692,1744876377648,-800.0,0.00175342,120]
[358257693,1744876377658,-2000.0,0.00179999,16]
[358257694,1744876377667,-3000.0,0.0018,120]
[358257695,1744876377676,-1515.03649769,0.0018,7]
[358257696,1744876377685,-847.68228044,0.0018,10]
[358257697,1744876377694,-800.0,0.00180821,120]
[358257698,1744876377704,-151.0,0.00181452,120]
[358257699,1744876377713,-150.0,0.00182867,120]
[358257700,1744876377722,-300.0,0.00184,120]
[358257701,1744876377731,-150.0,0.00184851,120]
[358257702,1744876377742,-800.0,0.00186301,120]
[358257703,1744876377751,-150.0,0.00187116,120]
[358257704,1744876377760,-151.0,0.00187205,120]
[358257705,1744876377769,-40000.0,0.0018888,120]
[358257706,1744876377779,-5000.0,0.0019,120]
[358257707,1744876377788,-847.68228044,0.0019,10]
[358257708,1744876377797,-800.0,0.0019178,120]
[358257709,1744876377806,-170779.005117,0.00194758,60]
[358257710,1744876377816,-800.0,0.0019726,120]
[358257711,1744876377825,-150.0,0.00197606,120]
[358257712,1744876377834,-200.0,0.00199,120]
[358257713,1744876377845,-750.0,0.002,120]
[358257714,1744876377854,-10000.0,0.002,120]
[358257715,1744876377864,-1000.0,0.002,30]
[358257716,1744876377873,-500.0,0.002,120]
[358257717,1744876377883,-847.68228044,0.002,10]
[358257718,1744876377892,-199.70898617,0.002,30]
[358257719,1744876377901,-151.0,0.00201425,120]
[358257720,1744876377911,-800.0,0.00202739,120]
[358257721,1744876377920,-151.0,0.00204192,120]
[358257722,1744876377930,-800.0,0.00208219,120]
[358257723,1744876377939,-3000.0,0.0021,120]
[358257724,1744876377949,-2959.86,0.0021,60]
[358257725,1744876377959,-800.0,0.00213698,120]
[358257726,1744876377968,-150.0,0.00213898,120]
[358257727,1744876377977,-151.0,0.00215644,120]
[358257728,1744876377987,-800.0,0.00219178,120]
[358257729,1744876377996,-847.68228044,0.0022,10]
[358257730,1744876378005,-150.0,0.0022163,120]
[358257731,1744876378014,-800.0,0.00224657,120]
[358257732,1744876378023,-151.0,0.00226932,120]
[358257733,1744876378033,-151.0,0.00229863,120]
[358257734,1744876378043,-800.0,0.00230136,120]
[358257735,1744876378052,-30000.0,0.00235,120]
[358257736,1744876378061,-800.0,0.00235616,120]
[358257737,1744876378071,-150.0,0.00238458,120]
[358257738,1744876378080,-800.0,0.00241095,120]
[358257739,1744876378089,-150.0,0.00241845,120]
[358257740,1744876378099,-300.0,0.00244,120]
[358257741,1744876378108,-151.0,0.00244082,120]
[358257742,1744876378118,-2000.0,0.00244999,16]
[358257743,1744876378127,-800.0,0.00246575,120]
[358257744,1744876378141,-300.0,0.00248,120]
[358257745,1744876378151,-151.0,0.00249671,120]
[358257746,1744876378161,-10000.0,0.0025,120]
[358257747,1744876378171,-847.68228044,0.0025,10]
[358257748,1744876378183,-338.39847013,0.0025,10]
[358257749,1744876378193,-150.0,0.00251557,120]
[358257750,1744876378203,-800.0,0.00252054,120]
[358257751,1744876378213,-291.6432043,0.00254091,120]
[358257752,1744876378224,-1071.00049023,0.002564,32]
[358257753,1744876378234,-800.0,0.00257534,120]
[358257754,1744876378244,-151.0,0.00258301,120]
[358257755,1744876378253,-150.0,0.00258727,120]
[358257756,1744876378263,-847.68228044,0.0026,10]
[358257757,1744876378273,-800.0,0.00263013,120]
[358257758,1744876378282,-150.0,0.00263898,120]
[358257759,1744876378292,-150.0,0.00268075,120]
[358257760,1744876378300,-800.0,0.00268493,120]
[358257761,1744876378309,-847.68228044,0.0027,10]
[358257762,1744876378319,-150.0,0.00271863,120]
[358257763,1744876378328,-151.0,0.00272411,120]
[358257764,1744876378338,-150.0,0.00272484,120]
[358257765,1744876378347,-151.0,0.00272521,120]
[358257766,1744876378358,-800.0,0.00273972,120]
[358257767,1744876378367,-150.0,0.0027714,120]
[358257768,1744876378378,-800.0,0.00279452,120]
[358257769,1744876378387,-2000.0,0.0028,120]
[358257770,1744876378397,-400.0,0.00284,120]
[358257771,1744876378407,-800.0,0.00284931,120]
[358257772,1744876378417,-1274.0,0.0028654,117]
[358257773,1744876378426,-151.0,0.0028674,120]
[358257774,1744876378435,-50000.0,0.0028888,120]
[358257775,1744876378445,-150.0,0.00289624,120]
[358257776,1744876378454,-17386.46348536,0.0029,120]
[358257777,1744876378464,-10000.0,0.0029,120]
[358257778,1744876378473,-800.0,0.0029041,120]
[358257779,1744876378482,-151.0,0.00295151,120]
[358257780,1744876378492,-800.0,0.0029589,120]
[358257781,1744876378501,-200.0,0.00299,120]
[358257782,1744876378511,-170779.005117,0.00299221,90]
[358257783,1744876378521,-1000.0,0.003,120]
[358257784,1744876378531,-5000.0,0.003,120]
[358257785,1744876378540,-10000.0,0.003,120]
[358257786,1744876378550,-537.26851549,0.003,120]
[358257787,1744876378560,-500.0,0.003,120]
[358257788,1744876378570,-804.14300793,0.003,120]
[358257789,1744876378579,-553.71,0.003,12]
[358257790,1744876378588,-151.0,0.00300959,120]
[358257791,1744876378597,-800.0,0.00301369,120]
[358257792,1744876378607,-150.0,0.00303473,120]
[358257793,1744876378616,-800.0,0.00306849,120]
[358257794,1744876378625,-2000.0,0.00309999,16]
[358257795,1744876378635,-800.0,0.00312328,120]
[358257796,1744876378644,-151.0,0.00315178,120]
[358257797,1744876378653,-800.0,0.00317808,120]
[358257798,1744876378663,-151.0,0.0031789,120]
[358257799,1744876378673,-800.0,0.00323287,120]
[358257800,1744876378683,-400.0,0.00324,120]
[358257801,1744876378692,-150.0,0.00324493,120]
[358257802,1744876378701,-800.0,0.00328767,120]
[358257803,1744876378710,-151.0,0.00329397,120]
[358257804,1744876378719,-150.0,0.00330406,120]
[358257805,1744876378729,-150.0,0.00331793,120]
[358257806,1744876378739,-800.0,0.00334246,120]
[358257807,1744876378749,-800.0,0.00339726,120]
[358257808,1744876378759,-30000.0,0.0034,120]
[358257809,1744876378768,-2959.86,0.0034,120]
[358257810,1744876378778,-151.0,0.0034063,120]
[358257811,1744876378787,-151.0,0.00343616,120]
[358257812,1744876378797,-300.0,0.00344,120]
[358257813,1744876378807,-2000.0,0.00345,120]
[358257814,1744876378816,-800.0,0.00345205,120]
[358257815,1744876378826,-508.16393645,0.003456,120]
[358257816,1744876378835,-10000.0,0.0035,120]
[358257817,1744876378845,-10000.0,0.0035,120]
[358257818,1744876378854,-10000.0,0.0035,120]
[358257819,1744876378864,-800.0,0.00350684,120]
[358257820,1744876378873,-847.68228044,0.00355,10]
[358257821,1744876378882,-2618.9047402,0.00356,35]
[358257822,1744876378892,-800.0,0.00356164,120]
[358257823,1744876378902,-151.0,0.00357836,120]
[358257824,1744876378912,-800.0,0.00361643,120]
[358257825,1744876378921,-151.0,0.0036337,120]
[358257826,1744876378931,-400.0,0.00364,120]
[358257827,1744876378941,-800.0,0.00367123,120]
[358257828,1744876378954,-150.0,0.00370495,120]
[358257829,1744876378963,-151.0,0.00372055,120]
[358257830,1744876378973,-800.0,0.00372602,120]
[358257831,1744876378982,-2000.0,0.00374999,16]
[358257832,1744876378991,-1128255.40102659,0.0037611,120]
[358257833,1744876379000,-800.0,0.00378082,120]
[358257834,1744876379010,-2000.0,0.0038,120]
[358257835,1744876379019,-264225.27058706,0.0038,80]
[358257836,1744876379028,-150.0,0.00380034,120]
[358257837,1744876379038,-800.0,0.00383561,120]
[358257838,1744876379047,-151.0,0.0038611,120]
[358257839,1744876379057,-151.0,0.00386274,120]
[358257840,1744876379067,-50000.0,0.0038888,120]
[358257841,1744876379076,-800.0,0.00389041,120]
[358257842,1744876379086,-30000.000001,0.0039,120]
[358257843,1744876379095,-170779.005117,0.00393418,120]
[358257844,1744876379104,-800.0,0.0039452,120]
[358257845,1744876379114,-150.0,0.00395225,120]
[358257846,1744876379123,-2000.0,0.003956,32]
[358257847,1744876379132,-1213.0,0.003978,120]
[358257848,1744876379144,-200.0,0.00399,120]
[358257849,1744876379154,-800.0,0.00399999,120]
[358257850,1744876379163,-10000.0,0.004,120]
[358257851,1744876379173,-1000.0,0.004,120]
[358257852,1744876379183,-2500.0,0.004,120]
[358257853,1744876379192,-500.0,0.004,120]
[358257854,1744876379202,-500.0,0.004,120]
[358257855,1744876379211,-999.0,0.004,120]
[358257856,1744876379222,-999.0,0.004,120]
[358257857,1744876379232,-999.0,0.004,120]
[358257858,1744876379242,-999.0,0.004,120]
[358257859,1744876379251,-999.0,0.004,120]
[358257860,1744876379260,-847.68228044,0.004,10]
[358257861,1744876379270,-1027.3563019,0.004,30]
[358257862,1744876379279,-151.0,0.00400493,120]
[358257863,1744876379289,-1187.7811221,0.00402834,120]
[358257864,1744876379299,-800.0,0.00405479,120]
[358257865,1744876379309,-150.0,0.00407121,120]
[358257866,1744876379320,-1297.0,0.004086,120]
[358257867,1744876379329,-151.0,0.00408849,120]
[358257868,1744876379339,-150.0,0.00409873,120]
[358257869,1744876379348,-800.0,0.00410958,120]
[358257870,1744876379358,-150.0,0.00411866,120]
[358257871,1744876379367,-150.0,0.00412151,120]
[358257872,1744876379377,-150.0,0.00412205,120]
[358257873,1744876379387,-400.0,0.00414,120]
[358257874,1744876379396,-151.0,0.00414712,120]
[358257875,1744876379405,-800.0,0.00416438,120]
[358257876,1744876379414,-800.0,0.00421917,120]
[358257877,1744876379423,-800.0,0.00427397,120]
[358257878,1744876379433,-150.0,0.00428719,120]
[358257879,1744876379442,-151.0,0.00428932,120]
[358257880,1744876379451,-999.0,0.0043,120]
[358257881,1744876379460,-999.0,0.0043,120]
[358257882,1744876379470,-999.0,0.0043,120]
[358257883,1744876379479,-999.0,0.0043,120]
[358257884,1744876379488,-999.0,0.0043,120]
[358257885,1744876379497,-150.0,0.00431325,120]
[358257886,1744876379507,-151.0,0.00431589,120]
[358257887,1744876379518,-800.0,0.00432876,120]
[358257888,1744876379528,-800.0,0.00438356,120]
[358257889,1744876379538,-2000.0,0.0044,16]
[358257890,1744876379547,-40000.0,0.0044,120]
[358257891,1744876379556,-150.0,0.00442051,120]
[358257892,1744876379566,-151.0,0.00443151,120]
[358257893,1744876379575,-800.0,0.00443835,120]
[358257894,1744876379585,-400.0,0.00444,120]
[358257895,1744876379595,-2000.0,0.004444,35]
[358257896,1744876379604,-2000.0,0.00445,120]
[358257897,1744876379613,-150.0,0.00445832,120]
[358257898,1744876379622,-749.40240061,0.00449315,120]
[358257899,1744876379632,-10000.0,0.0045,120]
[358257900,1744876379641,-999.0,0.0045,120]
[358257901,1744876379650,-999.0,0.0045,120]
[358257902,1744876379660,-999.0,0.0045,120]
[358257903,1744876379669,-999.0,0.0045,120]
[358257904,1744876379679,-999.0,0.0045,120]
[358257905,1744876379688,-999.0,0.0045,120]
[358257906,1744876379698,-357.7814335,0.0045,120]
[358257907,1744876379707,-151.0,0.00454329,120]
[358257908,1744876379716,-1000.0,0.004567,120]
[358257909,1744876379726,-151.0,0.0045737,120]
[358257910,1744876379735,-6384.51374773,0.0045885,120]
[358257911,1744876379744,-150.0,0.00461272,120]
[358257912,1744876379753,-1229.5,0.0046192,103]
[358257913,1744876379763,-1000.0,0.0046457,120]
[358257914,1744876379772,-24243.30077567,0.00465462,120]
[358257915,1744876379781,-151.0,0.00471589,120]
[358257916,1744876379790,-151.0,0.00477068,120]
[358257917,1744876379800,-2000.0,0.0048,120]
[358257918,1744876379809,-24096.53014167,0.0048,120]
[358257919,1744876379819,-440.0,0.00484,120]
[358257920,1744876379828,-151.0,0.00485808,120]
[358257921,1744876379837,-46820.0,0.004888,120]
[358257922,1744876379846,-50000.0,0.0048888,120]
[358257923,1744876379855,-999.99999,0.00489999,30]
[358257924,1744876379865,-100000.0,0.0049,120]
[358257925,1744876379874,-10000.0,0.0049,120]
[358257926,1744876379883,-999.0,0.0049,120]
[358257927,1744876379892,-999.0,0.0049,120]
[358257928,1744876379902,-999.0,0.0049,120]
[358257929,1744876379911,-999.0,0.0049,120]
[358257930,1744876379921,-999.0,0.0049,120]
[358257931,1744876379931,-5372.79820325,0.0049,120]
[358257932,1744876379941,-150.0,0.00491891,120]
[358257933,1744876379950,-2703.09,0.00495,120]
[358257934,1744876379959,-39992.0683812,0.004987,120]